fUSD/lending_fUSD_20240620
["ID","MTS","AMOUNT","RATE_DAILY","PERIOD"]
[329931053,1718842254404,-151.0,0.00013698,2]
[329931054,1718842254415,-151.0,0.00013698,2]
[329931055,1718842254424,-151.0,0.00013698,2]
[329931056,1718842254433,-151.0,0.00013698,2]
[329931057,1718842254442,-500.0,0.00013698,2]
[329931058,1718842254451,-164.061106,0.00013698,2]
[329931059,1718842254461,-151.0,0.00013698,2]
[329931060,1718842254470,-151.0,0.00013698,2]
[329931061,1718842254480,-1506.64,0.00013698,2]
[329931062,1718842254489,-151.0,0.00013698,2]
[329931063,1718842254499,-151.0,0.00013698,2]
[329931064,1718842254509,-151.0,0.00013698,2]
[329931065,1718842254519,-510.24,0.00013698,2]
[329931066,1718842254528,-151.0,0.00013698,2]
[329931067,1718842254538,-151.0,0.00013698,2]
[329931068,1718842254547,-151.0,0.00013698,2]
[329931069,1718842254557,-1154.1,0.00013698,2]
[329931070,1718842254566,-3388.54,0.00013698,2]
[329931071,1718842254576,-8816.35,0.00013698,2]
[329931072,1718842254586,-259.204425,0.00013698,2]
[329931073,1718842254595,-751.68,0.00013698,2]
[329931074,1718842254605,-500.0,0.00013698,2]
[329931075,1718842254615,-6335.79,0.00013698,2]
[329931076,1718842254624,-500.0,0.00013698,2]
[329931077,1718842254634,-500.0,0.00013698,2]
[329931078,1718842254644,-1234.57,0.00013698,2]
[329931079,1718842254653,-500.0,0.00013698,2]
[329931080,1718842254664,-1673.31,0.00013698,2]
[329931081,1718842254674,-500.0,0.00013698,2]
[329931082,1718842254683,-152.0,0.00013698,2]
[329931083,1718842254693,-500.0,0.00013698,2]
[329931084,1718842254702,-500.0,0.00013698,2]
[329931085,1718842254711,-5839.53,0.00013698,2]
[329931086,1718842254721,-514.47156574,0.00013698,2]
[329931087,1718842254731,-500.0,0.00013698,2]
[329931088,1718842254740,-16067.33,0.00013698,2]
[329931089,1718842254749,-4740.05,0.00013698,2]
[329931090,1718842254759,-500.0,0.00013698,2]
[329931091,1718842254768,-1109.57,0.00013698,2]
[329931092,1718842254777,-672.95,0.00013698,2]
[329931093,1718842254787,-370.33792281,0.00013698,2]
[329931094,1718842254796,-3078.51,0.00013698,2]
[329931095,1718842254805,-712.033248,0.00013698,2]
[329931096,1718842254814,-151.0,0.00013698,2]
[329931097,1718842254824,-712.033248,0.00013698,2]
[329931098,1718842254833,-712.033248,0.00013698,2]
[329931099,1718842254842,-712.033248,0.00013698,2]
[329931100,1718842254851,-712.033248,0.00013698,2]
[329931101,1718842254862,-500.0,0.00013698,2]
[329931102,1718842254871,-712.033248,0.00013698,2]
[329931103,1718842254880,-3826.09,0.00013698,2]
[329931104,1718842254889,-500.0,0.00013698,2]
[329931105,1718842254900,-597.35,0.00013698,2]
[329931106,1718842254910,-712.033248,0.00013698,2]
[329931107,1718842254919,-712.033248,0.00013698,2]
[329931108,1718842254928,-500.0,0.00013698,2]
[329931109,1718842254938,-151.0,0.00013698,2]
[329931110,1718842254948,-228.48802,0.00013698,2]
[329931111,1718842254957,-500.0,0.00013698,2]
[329931112,1718842254967,-712.033248,0.00013698,2]
[329931113,1718842254976,-845.13,0.00013698,2]
[329931114,1718842254986,-14001.67,0.00013698,2]
[329931115,1718842254996,-712.033248,0.00013698,2]
[329931116,1718842255006,-500.0,0.00013698,2]
[329931117,1718842255016,-712.033248,0.00013698,2]
[329931118,1718842255025,-3014.42,0.00013698,2]
[329931119,1718842255035,-712.033248,0.00013698,2]
[329931120,1718842255045,-500.0,0.00013698,2]
[329931121,1718842255056,-712.033248,0.00013698,2]
[329931122,1718842255067,-7939.67,0.00013698,2]
[329931123,1718842255077,-5930.09,0.00013698,2]
[329931124,1718842255088,-712.033248,0.00013698,2]
[329931125,1718842255097,-712.033248,0.00013698,2]
[329931126,1718842255107,-1630.93,0.00013698,2]
[329931127,1718842255116,-712.033253,0.00013698,2]
[329931128,1718842255125,-13626.98,0.00013698,2]
[329931129,1718842255134,-2808.29,0.00013698,2]
[329931130,1718842255143,-500.0,0.00013698,2]
[329931131,1718842255153,-500.0,0.00013698,2]
[329931132,1718842255163,-190.59814357,0.00013698,2]
[329931133,1718842255172,-500.0,0.00013698,2]
[329931134,1718842255182,-2856.2,0.00013698,2]
[329931135,1718842255191,-513.28,0.00013698,2]
[329931136,1718842255200,-966.57,0.00013698,2]
[329931137,1718842255210,-500.0,0.00013698,2]
[329931138,1718842255219,-151.0,0.00013698,2]
[329931139,1718842255229,-569.31,0.00013698,2]
[329931140,1718842255239,-500.0,0.00013698,2]
[329931141,1718842255249,-836.26,0.00013698,2]
[329931142,1718842255260,-2519.0,0.00013698,2]
[329931143,1718842255270,-258.224213,0.00013698,2]
[329931144,1718842255279,-1788.45,0.00013698,2]
[329931145,1718842255290,-1692.92,0.00013698,2]
[329931146,1718842255300,-500.0,0.00013698,2]
[329931147,1718842255309,-500.0,0.00013698,2]
[329931148,1718842255319,-500.0,0.00013698,2]
[329931149,1718842255330,-2020.86,0.00013698,2]
[329931150,1718842255341,-2339.07,0.00013698,2]
[329931151,1718842255351,-500.0,0.00013698,2]
[329931152,1718842255361,-500.0,0.00013698,2]
[329931153,1718842255371,-500.0,0.00013698,2]
[329931154,1718842255380,-1389.4,0.00013698,2]
[329931155,1718842255389,-819.34051136,0.00013698,2]
[329931156,1718842255399,-1000.0,0.00013699,2]
[329931157,1718842255409,-200.0,0.00013699,2]
[329931158,1718842255418,-200.0,0.00013699,2]
[329931159,1718842255428,-2087.5,0.00013699,2]
[329931160,1718842255438,-250.0,0.00013699,2]
[329931161,1718842255447,-689.84,0.00013699,2]
[329931162,1718842255457,-200.0,0.00013699,2]
[329931163,1718842255466,-3262.77,0.00013699,2]
[329931164,1718842255476,-2751.0,0.00013699,2]
[329931165,1718842255485,-151.0,0.00013699,2]
[329931166,1718842255495,-151.0,0.00013699,2]
[329931167,1718842255504,-151.0,0.00013699,2]
[329931168,1718842255514,-151.0,0.00013699,2]
[329931169,1718842255524,-151.0,0.00013699,2]
[329931170,1718842255534,-151.0,0.00013699,2]
[329931171,1718842255544,-151.0,0.00013699,2]
[329931172,1718842255554,-151.0,0.00013699,2]
[329931173,1718842255565,-151.0,0.00013699,2]
[329931174,1718842255574,-151.0,0.00013699,2]
[329931175,1718842255584,-151.0,0.00013699,2]
[329931176,1718842255594,-151.0,0.00013699,2]
[329931177,1718842255603,-172.066828,0.00013699,2]
[329931178,1718842255613,-500.0,0.000137,2]
[329931179,1718842255623,-339.2,0.000137,2]
[329931180,1718842255632,-150.0,0.00013705,2]
[329931181,1718842255642,-150.0,0.00013719,2]
[329931182,1718842255651,-150.0,0.00013721,2]
[329931183,1718842255662,-150.0,0.00013722,2]
[329931184,1718842255673,-150.0,0.00013725,2]
[329931185,1718842255682,-150.0,0.00013726,2]
[329931186,1718842255692,-2115.87179344,0.00013728,2]
[329931187,1718842255701,-150.0,0.00013735,2]
[329931188,1718842255710,-150.0,0.00013735,2]
[329931189,1718842255721,-150.0,0.00013736,2]
[329931190,1718842255730,-150.0,0.00013738,2]
[329931191,1718842255740,-150.0,0.0001374,2]
[329931192,1718842255750,-150.0,0.0001374,2]
[329931193,1718842255759,-150.0,0.00013742,2]
[329931194,1718842255769,-150.0,0.00013746,2]
[329931195,1718842255778,-150.0,0.00013751,2]
[329931196,1718842255788,-823.0,0.00013753,2]
[329931197,1718842255798,-150.0,0.00013755,2]
[329931198,1718842255808,-150.0,0.00013757,2]
[329931199,1718842255818,-150.0,0.00013761,2]
[329931200,1718842255828,-150.0,0.00013762,2]
[329931201,1718842255837,-150.0,0.00013763,2]
[329931202,1718842255847,-150.0,0.00013764,2]
[329931203,1718842255856,-150.0,0.00013766,2]
[329931204,1718842255866,-150.0,0.00013766,2]
[329931205,1718842255875,-150.0,0.00013772,2]
[329931206,1718842255885,-150.0,0.00013773,2]
[329931207,1718842255895,-150.0,0.00013773,2]
[329931208,1718842255904,-150.0,0.00013776,2]
[329931209,1718842255914,-150.0,0.00013778,2]
[329931210,1718842255924,-150.0,0.0001378,2]
[329931211,1718842255934,-2115.87179344,0.00013785,2]
[329931212,1718842255943,-209.44449682,0.00013787,2]
[329931213,1718842255953,-500.0,0.00013788,2]
[329931214,1718842255962,-500.0,0.00013789,2]
[329931215,1718842255971,-1225.03,0.00013789,2]
[329931216,1718842255981,-1225.03,0.00013789,2]
[329931217,1718842255990,-61129.57048777,0.0001379,2]
[329931218,1718842255999,-61129.5704877,0.0001379,2]
[329931219,1718842256009,-61129.5704877,0.0001379,2]
[329931220,1718842256018,-61129.5704877,0.0001379,2]
[329931221,1718842256028,-61129.5704877,0.0001379,2]
[329931222,1718842256037,-61129.5704877,0.0001379,2]
[329931223,1718842256047,-61129.5704877,0.0001379,2]
[329931224,1718842256056,-61129.5704877,0.0001379,2]
[329931225,1718842256066,-150.0,0.0001379,2]
[329931226,1718842256075,-150.0,0.00013791,2]
[329931227,1718842256084,-150.0,0.00013792,2]
[329931228,1718842256093,-150.0,0.00013793,2]
[329931229,1718842256103,-150.0,0.00013794,2]
[329931230,1718842256112,-5628.31785365,0.00013795,2]
[329931231,1718842256121,-5526.17789615,0.00013799,2]
[329931232,1718842256130,-5526.17789615,0.00013799,2]
[329931233,1718842256139,-5526.17789615,0.00013799,2]
[329931234,1718842256148,-5526.17789615,0.00013799,2]
[329931235,1718842256157,-5526.17789615,0.00013799,2]
[329931236,1718842256167,-957.96904994,0.000138,3]
[329931237,1718842256176,-3272.69954589,0.000138,2]
[329931238,1718842256185,-150.0,0.00013803,2]
[329931239,1718842256194,-150.0,0.00013804,2]
[329931240,1718842256203,-150.0,0.00013806,2]
[329931241,1718842256212,-679.0,0.00013808,2]
[329931242,1718842256221,-150.0,0.00013809,2]
[329931243,1718842256230,-500.0,0.0001381,2]
[329931244,1718842256240,-150.0,0.00013811,2]
[329931245,1718842256251,-1000.0,0.00013811,2]
[329931246,1718842256260,-150.0,0.00013812,2]
[329931247,1718842256269,-150.0,0.00013818,2]
[329931248,1718842256279,-150.0,0.00013819,2]
[329931249,1718842256290,-150.0,0.00013826,2]
[329931250,1718842256299,-150.0,0.00013826,2]
[329931251,1718842256309,-150.0,0.00013828,2]
[329931252,1718842256319,-150.0,0.00013831,2]
[329931253,1718842256330,-150.0,0.00013839,2]
[329931254,1718842256339,-150.0,0.00013841,2]
[329931255,1718842256348,-2115.87179344,0.00013843,2]
[329931256,1718842256357,-61129.5704877,0.00013844,2]
[329931257,1718842256367,-5526.17789615,0.00013844,2]
[329931258,1718842256377,-150.0,0.0001385,2]
[329931259,1718842256386,-150.0,0.0001385,2]
[329931260,1718842256395,-150.0,0.00013853,2]
[329931261,1718842256405,-1225.03,0.00013855,2]
[329931262,1718842256415,-150.0,0.00013855,2]
[329931263,1718842256424,-150.0,0.00013868,2]
[329931264,1718842256433,-1551.67032526,0.00013873,2]
[329931265,1718842256442,-150.0,0.00013874,2]
[329931266,1718842256452,-150.0,0.00013875,2]
[329931267,1718842256461,-150.0,0.00013878,2]
[329931268,1718842256470,-150.0,0.00013879,2]
[329931269,1718842256480,-150.0,0.0001388,2]
[329931270,1718842256489,-150.0,0.0001389,2]
[329931271,1718842256498,-150.0,0.00013891,2]
[329931272,1718842256507,-150.0,0.00013891,2]
[329931273,1718842256516,-150.0,0.00013893,2]
[329931274,1718842256525,-150.0,0.00013893,2]
[329931275,1718842256535,-150.0,0.00013894,2]
[329931276,1718842256544,-6280.0,0.000139,2]
[329931277,1718842256556,-753.4814338,0.000139,2]
[329931278,1718842256569,-5800.0,0.000139,2]
[329931279,1718842256582,-1551.67032526,0.000139,2]
[329931280,1718842256593,-478.16211426,0.000139,2]
[329931281,1718842256603,-2115.87179344,0.000139,2]
[329931282,1718842256615,-61129.5704877,0.000139,2]
[329931283,1718842256627,-753.4814338,0.000139,2]
[329931284,1718842256639,-5526.17789615,0.000139,2]
[329931285,1718842256651,-170.96002729,0.000139,2]
[329931286,1718842256664,-150.0,0.000139,2]
[329931287,1718842256677,-150.0,0.000139,2]
[329931288,1718842256688,-201.65732966,0.000139,2]
[329931289,1718842256700,-5628.31785365,0.000139,2]
[329931290,1718842256712,-150.0,0.00013904,2]
[329931291,1718842256723,-150.0,0.00013905,2]
[329931292,1718842256733,-150.0,0.00013906,2]
[329931293,1718842256744,-150.0,0.00013907,2]
[329931294,1718842256757,-150.0,0.0001391,2]
[329931295,1718842256770,-150.0,0.00013912,2]
[329931296,1718842256782,-150.0,0.0001392,2]
[329931297,1718842256795,-150.0,0.00013921,2]
[329931298,1718842256806,-150.0,0.00013921,2]
[329931299,1718842256819,-150.0,0.00013926,2]
[329931300,1718842256831,-150.0,0.00013927,2]
[329931301,1718842256843,-150.0,0.00013928,2]
[329931302,1718842256854,-150.0,0.0001393,2]
[329931303,1718842256866,-150.0,0.00013932,2]
[329931304,1718842256878,-150.0,0.00013933,2]
[329931305,1718842256890,-150.0,0.00013933,2]
[329931306,1718842256902,-150.0,0.00013936,2]
[329931307,1718842256914,-150.0,0.00013936,2]
[329931308,1718842256925,-150.0,0.00013936,2]
[329931309,1718842256940,-150.0,0.00013943,2]
[329931310,1718842256951,-500.0,0.00013944,2]
[329931311,1718842256962,-500.0,0.00013944,2]
[329931312,1718842256974,-1225.03,0.00013944,2]
[329931313,1718842256987,-43947.0,0.00013945,2]
[329931314,1718842257000,-75348.0,0.00013945,2]
[329931315,1718842257012,-150.0,0.00013946,2]
[329931316,1718842257023,-150.0,0.00013948,2]
[329931317,1718842257034,-150.0,0.00013948,2]
[329931318,1718842257044,-155.0,0.00013949,2]
[329931319,1718842257054,-1759.61404563,0.00013949,2]
[329931320,1718842257064,-500.0,0.00013949,2]
[329931321,1718842257077,-500.0,0.00013949,2]
[329931322,1718842257090,-500.0,0.00013949,2]
[329931323,1718842257100,-500.0,0.00013949,2]
[329931324,1718842257109,-1225.03,0.00013949,2]
[329931325,1718842257119,-1225.03,0.00013949,2]
[329931326,1718842257130,-190211.46764578,0.0001395,2]
[329931327,1718842257141,-353343.2321182,0.0001395,2]
[329931328,1718842257153,-50631.05041083,0.0001395,2]
[329931329,1718842257165,-150.0,0.00013952,2]
[329931330,1718842257175,-150.0,0.00013958,2]
[329931331,1718842257186,-150.0,0.00013959,2]
[329931332,1718842257196,-150.0,0.00013962,2]
[329931333,1718842257208,-150.0,0.00013968,2]
[329931334,1718842257218,-162.85483018,0.0001397,2]
[329931335,1718842257229,-298.6067334,0.0001397,2]
[329931336,1718842257240,-500.0,0.00013971,2]
[329931337,1718842257254,-500.0,0.00013971,2]
[329931338,1718842257264,-500.0,0.00013971,2]
[329931339,1718842257274,-500.0,0.00013971,2]
[329931340,1718842257286,-620.00664082,0.00013971,2]
[329931341,1718842257297,-1225.03,0.00013971,2]
[329931342,1718842257309,-1225.03,0.00013971,2]
[329931343,1718842257320,-1225.03,0.00013971,2]
[329931344,1718842257332,-1225.03,0.00013971,2]
[329931345,1718842257343,-1225.03,0.00013971,2]
[329931346,1718842257355,-1225.03,0.00013971,2]
[329931347,1718842257366,-1225.03,0.00013971,2]
[329931348,1718842257377,-1225.03,0.00013971,2]
[329931349,1718842257388,-1225.26,0.00013971,2]
[329931350,1718842257399,-500.0,0.00013972,2]
[329931351,1718842257410,-500.0,0.00013972,2]
[329931352,1718842257421,-500.0,0.00013972,2]
[329931353,1718842257432,-717.15,0.00013972,2]
[329931354,1718842257443,-500.0,0.00013972,2]
[329931355,1718842257453,-500.0,0.00013972,2]
[329931356,1718842257464,-500.0,0.00013972,2]
[329931357,1718842257475,-810.74,0.00013972,2]
[329931358,1718842257486,-500.0,0.00013972,2]
[329931359,1718842257497,-602.65,0.00013972,2]
[329931360,1718842257508,-500.0,0.00013972,2]
[329931361,1718842257520,-500.0,0.00013972,2]
[329931362,1718842257530,-592.96,0.00013972,2]
[329931363,1718842257542,-706.88,0.00013972,2]
[329931364,1718842257553,-500.0,0.00013972,2]
[329931365,1718842257563,-772.46,0.00013972,2]
[329931366,1718842257574,-500.0,0.00013972,2]
[329931367,1718842257584,-525.2,0.00013972,2]
[329931368,1718842257595,-660.82,0.00013972,2]
[329931369,1718842257607,-700.78,0.00013972,2]
[329931370,1718842257619,-509.31,0.00013972,2]
[329931371,1718842257631,-500.0,0.00013972,2]
[329931372,1718842257643,-500.0,0.00013972,2]
[329931373,1718842257654,-640.38,0.00013972,2]
[329931374,1718842257666,-500.0,0.00013972,2]
[329931375,1718842257677,-500.0,0.00013972,2]
[329931376,1718842257688,-500.0,0.00013972,2]
[329931377,1718842257698,-489.77914909,0.00013972,2]
[329931378,1718842257709,-500.0,0.00013972,2]
[329931379,1718842257719,-500.0,0.00013972,2]
[329931380,1718842257730,-500.0,0.00013972,2]
[329931381,1718842257741,-629.64,0.00013972,2]
[329931382,1718842257752,-824.25,0.00013972,2]
[329931383,1718842257763,-500.0,0.00013972,2]
[329931384,1718842257774,-500.0,0.00013972,2]
[329931385,1718842257785,-500.0,0.00013972,2]
[329931386,1718842257795,-500.0,0.00013972,2]
[329931387,1718842257806,-500.0,0.00013972,2]
[329931388,1718842257816,-500.0,0.00013972,2]
[329931389,1718842257827,-500.0,0.00013972,2]
[329931390,1718842257838,-500.0,0.00013972,2]
[329931391,1718842257848,-500.0,0.00013972,2]
[329931392,1718842257859,-500.0,0.00013972,2]
[329931393,1718842257870,-562.98,0.00013972,2]
[329931394,1718842257880,-587.11,0.00013972,2]
[329931395,1718842257891,-489.57304818,0.00013972,2]
[329931396,1718842257901,-500.0,0.00013972,2]
[329931397,1718842257913,-500.0,0.00013972,2]
[329931398,1718842257924,-500.0,0.00013972,2]
[329931399,1718842257935,-500.0,0.00013972,2]
[329931400,1718842257946,-500.0,0.00013972,2]
[329931401,1718842257956,-500.0,0.00013972,2]
[329931402,1718842257972,-500.0,0.00013972,2]
[329931403,1718842257983,-500.0,0.00013972,2]
[329931404,1718842257993,-500.0,0.00013972,2]
[329931405,1718842258004,-500.0,0.00013972,2]
[329931406,1718842258014,-500.0,0.00013972,2]
[329931407,1718842258024,-643.29,0.00013972,2]
[329931408,1718842258036,-500.0,0.00013972,2]
[329931409,1718842258048,-513.94,0.00013972,2]
[329931410,1718842258059,-500.0,0.00013972,2]
[329931411,1718842258069,-500.0,0.00013972,2]
[329931412,1718842258081,-500.0,0.00013972,2]
[329931413,1718842258092,-500.0,0.00013972,2]
[329931414,1718842258103,-1640.26,0.00013972,2]
[329931415,1718842258114,-500.0,0.00013972,2]
[329931416,1718842258125,-504.52,0.00013972,2]
[329931417,1718842258136,-500.0,0.00013972,2]
[329931418,1718842258147,-500.0,0.00013972,2]
[329931419,1718842258158,-657.93,0.00013972,2]
[329931420,1718842258170,-545.99,0.00013972,2]
[329931421,1718842258182,-500.0,0.00013972,2]
[329931422,1718842258192,-619.72,0.00013972,2]
[329931423,1718842258204,-500.0,0.00013972,2]
[329931424,1718842258216,-500.0,0.00013972,2]
[329931425,1718842258228,-500.0,0.00013972,2]
[329931426,1718842258238,-669.88,0.00013972,2]
[329931427,1718842258252,-500.0,0.00013972,2]
[329931428,1718842258263,-500.0,0.00013972,2]
[329931429,1718842258274,-902.87,0.00013972,2]
[329931430,1718842258285,-500.0,0.00013972,2]
[329931431,1718842258295,-558.17,0.00013972,2]
[329931432,1718842258306,-500.0,0.00013972,2]
[329931433,1718842258317,-630.93321872,0.00013972,2]
[329931434,1718842258330,-695.71,0.00013972,2]
[329931435,1718842258340,-1078.61,0.00013972,2]
[329931436,1718842258351,-500.0,0.00013972,2]
[329931437,1718842258362,-500.0,0.00013972,2]
[329931438,1718842258372,-676.24,0.00013972,2]
[329931439,1718842258384,-1383.59,0.00013972,2]
[329931440,1718842258394,-500.0,0.00013972,2]
[329931441,1718842258404,-500.0,0.00013972,2]
[329931442,1718842258416,-626.54,0.00013972,2]
[329931443,1718842258427,-920.26,0.00013972,2]
[329931444,1718842258438,-500.0,0.00013972,2]
[329931445,1718842258449,-522.19,0.00013972,2]
[329931446,1718842258459,-500.0,0.00013972,2]
[329931447,1718842258471,-500.0,0.00013972,2]
[329931448,1718842258481,-500.0,0.00013972,2]
[329931449,1718842258492,-734.52,0.00013972,2]
[329931450,1718842258503,-500.0,0.00013972,2]
[329931451,1718842258514,-728.06,0.00013972,2]
[329931452,1718842258524,-206.22,0.00013972,2]
[329931453,1718842258535,-588.31,0.00013972,2]
[329931454,1718842258546,-869.51,0.00013972,2]
[329931455,1718842258557,-170.79920074,0.00013972,2]
[329931456,1718842258568,-500.0,0.00013972,2]
[329931457,1718842258579,-829.44,0.00013972,2]
[329931458,1718842258590,-1177.97,0.00013972,2]
[329931459,1718842258600,-500.0,0.00013972,2]
[329931460,1718842258611,-950.31,0.00013972,2]
[329931461,1718842258622,-1724.6,0.00013972,2]
[329931462,1718842258632,-500.0,0.00013972,2]
[329931463,1718842258643,-500.0,0.00013972,2]
[329931464,1718842258654,-500.0,0.00013972,2]
[329931465,1718842258665,-1660.84,0.00013972,2]
[329931466,1718842258676,-500.0,0.00013972,2]
[329931467,1718842258686,-500.0,0.00013972,2]
[329931468,1718842258697,-1296.21,0.00013972,2]
[329931469,1718842258707,-500.0,0.00013972,2]
[329931470,1718842258718,-1004.65,0.00013972,2]
[329931471,1718842258728,-1481.45,0.00013972,2]
[329931472,1718842258739,-500.0,0.00013972,2]
[329931473,1718842258750,-724.3,0.00013972,2]
[329931474,1718842258760,-500.0,0.00013972,2]
[329931475,1718842258771,-500.0,0.00013972,2]
[329931476,1718842258781,-500.0,0.00013972,2]
[329931477,1718842258791,-1131.72,0.00013972,2]
[329931478,1718842258802,-1205.84,0.00013972,2]
[329931479,1718842258813,-500.0,0.00013972,2]
[329931480,1718842258824,-500.0,0.00013972,2]
[329931481,1718842258834,-500.0,0.00013972,2]
[329931482,1718842258844,-587.77,0.00013972,2]
[329931483,1718842258855,-1218.27,0.00013972,2]
[329931484,1718842258866,-828.18,0.00013972,2]
[329931485,1718842258877,-1407.82,0.00013972,2]
[329931486,1718842258888,-672.47,0.00013972,2]
[329931487,1718842258900,-500.0,0.00013972,2]
[329931488,1718842258914,-500.0,0.00013972,2]
[329931489,1718842258925,-500.0,0.00013972,2]
[329931490,1718842258935,-500.0,0.00013972,2]
[329931491,1718842258945,-500.0,0.00013972,2]
[329931492,1718842258956,-636.71,0.00013972,2]
[329931493,1718842258965,-500.0,0.00013972,2]
[329931494,1718842258976,-556.62,0.00013972,2]
[329931495,1718842258987,-746.84,0.00013972,2]
[329931496,1718842258997,-500.0,0.00013972,2]
[329931497,1718842259008,-607.79,0.00013972,2]
[329931498,1718842259018,-1136.53,0.00013972,2]
[329931499,1718842259028,-500.0,0.00013972,2]
[329931500,1718842259038,-1859.57,0.00013972,2]
[329931501,1718842259049,-500.0,0.00013972,2]
[329931502,1718842259059,-627.32,0.00013972,2]
[329931503,1718842259070,-500.0,0.00013972,2]
[329931504,1718842259081,-830.85,0.00013972,2]
[329931505,1718842259091,-493.33,0.00013972,2]
[329931506,1718842259101,-1257.79,0.00013972,2]
[329931507,1718842259111,-500.0,0.00013972,2]
[329931508,1718842259122,-500.0,0.00013972,2]
[329931509,1718842259132,-558.24957234,0.00013972,2]
[329931510,1718842259143,-1058.54,0.00013972,2]
[329931511,1718842259152,-1456.75,0.00013972,2]
[329931512,1718842259165,-1607.41,0.00013972,2]
[329931513,1718842259176,-500.0,0.00013972,2]
[329931514,1718842259187,-500.0,0.00013972,2]
[329931515,1718842259197,-500.0,0.00013972,2]
[329931516,1718842259207,-1134.46,0.00013972,2]
[329931517,1718842259218,-500.0,0.00013972,2]
[329931518,1718842259229,-500.0,0.00013972,2]
[329931519,1718842259246,-1487.93,0.00013972,2]
[329931520,1718842259263,-500.0,0.00013972,2]
[329931521,1718842259275,-886.95,0.00013972,2]
[329931522,1718842259289,-500.0,0.00013972,2]
[329931523,1718842259301,-184.75953876,0.00013972,2]
[329931524,1718842259314,-500.0,0.00013972,2]
[329931525,1718842259327,-1170.93,0.00013972,2]
[329931526,1718842259342,-1669.27,0.00013972,2]
[329931527,1718842259355,-1110.48,0.00013972,2]
[329931528,1718842259368,-500.0,0.00013972,2]
[329931529,1718842259380,-598.78,0.00013972,2]
[329931530,1718842259392,-754.68,0.00013972,2]
[329931531,1718842259404,-1719.04,0.00013972,2]
[329931532,1718842259419,-710.42,0.00013972,2]
[329931533,1718842259430,-1070.31,0.00013972,2]
[329931534,1718842259442,-746.95,0.00013972,2]
[329931535,1718842259454,-500.0,0.00013972,2]
[329931536,1718842259465,-640.71,0.00013972,2]
[329931537,1718842259477,-500.0,0.00013972,2]
[329931538,1718842259489,-528.38,0.00013972,2]
[329931539,1718842259501,-500.0,0.00013972,2]
[329931540,1718842259513,-1528.36,0.00013972,2]
[329931541,1718842259524,-500.0,0.00013972,2]
[329931542,1718842259536,-739.84,0.00013972,2]
[329931543,1718842259548,-736.09,0.00013972,2]
[329931544,1718842259560,-500.0,0.00013972,2]
[329931545,1718842259571,-500.0,0.00013972,2]
[329931546,1718842259583,-500.0,0.00013972,2]
[329931547,1718842259594,-500.0,0.00013972,2]
[329931548,1718842259605,-500.0,0.00013972,2]
[329931549,1718842259617,-500.0,0.00013972,2]
[329931550,1718842259629,-500.0,0.00013972,2]
[329931551,1718842259640,-500.0,0.00013972,2]
[329931552,1718842259652,-500.0,0.00013972,2]